bitfinex-derivatives/quotes_SOLF0:USTF0_20250507
["timestamp","ask_amount","ask_price","bid_price","bid_amount"]
[1746647420531,32.48,145.65,145.62,6.8664]
[1746647420732,32.48,145.65,145.58,32.48]
[1746647421032,32.48,145.65,145.63,6.866]
[1746647421430,32.48,145.65,145.56,6.2771]
[1746647422140,32.48,145.65,145.62,6.8664]
[1746647422331,32.48,145.65,145.56,6.2771]
[1746647422533,32.5,145.68,145.58,14.7072929]
[1746647422735,39.3642,145.68,145.64,6.8655]
[1746647423036,32.5,145.68,145.64,6.8655]
[1746647423534,32.5,145.68,145.66,6.8648]
[1746647423738,6.8647,145.67,145.59,32.5]
[1746647423927,32.5,145.68,145.56,38.7771]
[1746647424133,32.5,145.68,145.6,6.8675]
[1746647424333,32.5,145.68,145.56,38.7771]
[1746647424334,6.8666,145.63,145.56,38.7771]
[1746647424534,32.5,145.68,145.61,6.8672]
[1746647424739,32.5,145.68,145.56,38.7771]
[1746647424942,6.8666,145.63,145.56,36.6902]
[1746647425140,32.5,145.68,145.6,6.8675]
[1746647425340,32.5,145.68,145.56,36.6902]
[1746647425639,32.5,145.68,145.59,6.8678]
[1746647425840,6.8666,145.63,145.59,6.8678]
[1746647426044,6.8666,145.63,145.56,36.6902]
[1746647426045,32.5,145.64,145.56,34.6911]
[1746647426239,32.5,145.64,145.58,6.8685]
[1746647426637,32.5,145.64,145.53,32.5]
[1746647426841,4.1852,145.63,145.53,32.5]
[1746647427041,6.867,145.62,145.53,32.5]
[1746647427242,6.867,145.62,145.53,47.2072929]
[1746647427446,32.5,145.64,145.56,14.7072929]
[1746647427746,32.5,145.64,145.61,6.867]
[1746647428044,32.5,145.64,145.57,34.647]
[1746647428443,625.72,145.67,145.57,34.647]
[1746647428643,625.72,145.67,145.57,36.7134]
[1746647428843,625.72,145.67,145.64,6.8657]
[1746647428844,593.22,145.67,145.64,6.8657]
[1746647429044,625.72,145.67,145.64,6.8657]
[1746647429247,4.1852,145.68,145.57,36.7134]
[1746647429442,32.5,145.69,145.59,14.7072929]
[1746647429947,32.5,145.69,145.62,14.7072929]
[1746647430148,32.5,145.69,145.68,6.864]
[1746647430348,32.5,145.72,145.63,34.647]
[1746647430843,4.2063,145.73,145.6,32.5]
[1746647431145,32.5,145.72,145.6,34.5488]
[1746647431346,6.8627,145.71,145.68,6.8635]
[1746647431538,6.8627,145.71,145.6,34.5488]
[1746647431736,4.2063,145.73,145.65,6.8651]
[1746647431947,6.8637,145.69,145.65,6.8651]
[1746647432143,32.5,145.72,145.6,34.5488]
[1746647432547,6.8633,145.7,145.66,6.8646]
[1746647432745,4.2063,145.73,145.6,34.5488]
[1746647432946,32.5,145.72,145.6,34.5488]
[1746647433444,4.2063,145.73,145.6,34.5488]
[1746647433645,6.8628,145.71,145.6,34.5488]
[1746647434145,6.8628,145.71,145.68,6.8639]
[1746647434345,6.863,145.7,145.6,34.5488]
[1746647434546,32.5,145.72,145.6,34.5488]
[1746647434736,6.8647,145.67,145.64,6.8657]
[1746647434941,32.5,145.72,145.64,6.8657]
[1746647435346,6.8647,145.67,145.63,6.8661]
[1746647435537,32.5,145.72,145.63,6.8661]
[1746647435742,47.2072929,145.71,145.6,32.5]
[1746647435949,47.2072929,145.71,145.58,2.0487]
[1746647436148,47.2072929,145.71,145.57,34.5664]
[1746647436646,6.8662,145.64,145.57,32.5]
[1746647437443,8.9894,145.65,145.57,32.5]
[1746647438151,6.8661,145.64,145.61,6.8669]
[1746647438349,6.8661,145.64,145.57,32.5]
[1746647438748,6.8661,145.64,145.61,6.8672]
[1746647439047,2.1239,145.65,145.57,32.5]
[1746647439451,8.9895,145.65,145.61,6.867]
[1746647439844,8.9895,145.65,145.57,32.5]
[1746647440247,6.8659,145.64,145.57,32.5]
[1746647440549,6.8659,145.64,145.6,6.8674]
[1746647440751,2.1239,145.65,145.57,32.5]
[1746647441447,8.9896,145.65,145.57,32.5]
[1746647441647,8.9896,145.65,145.61,6.8668]
[1746647441844,2.1239,145.65,145.57,32.5]
[1746647442350,8.9896,145.65,145.57,32.5]
[1746647442555,34.6121,145.69,145.57,47.2072929]
[1746647442953,6.8642,145.68,145.65,6.8651]
[1746647443157,34.6121,145.69,145.61,32.5]
[1746647443453,34.6121,145.69,145.65,6.8651]
[1746647443651,32.5,145.69,145.65,6.8651]
[1746647443853,2.0718,145.7,145.61,32.5]
[1746647444046,2.0718,145.7,145.62,2.0863]
[1746647444451,6.8643,145.68,145.64,6.8656]
[1746647444756,2.0718,145.7,145.62,2.0863]
[1746647444956,6.8635,145.69,145.62,2.0863]
[1746647445555,6.8635,145.69,145.66,6.8649]
[1746647445751,8.9349,145.7,145.62,2.0863]
[1746647446153,8.9349,145.7,145.67,6.8644]
[1746647446854,2.0718,145.7,145.67,6.8644]
[1746647447557,2.0718,145.7,145.68,6.8638]
[1746647447850,32.5,145.71,145.63,14.7072929]
[1746647448048,2.0728,145.73,145.63,14.7072929]
[1746647448453,2.0728,145.73,145.62,2.0863]
[1746647448653,6.863,145.7,145.67,6.8642]
[1746647448952,2.0728,145.73,145.67,6.8642]
[1746647449157,6.8631,145.7,145.67,6.8642]
[1746647449360,2.0728,145.73,145.62,2.0863]
[1746647450254,2.0728,145.73,145.66,6.8646]
[1746647450460,2.0728,145.73,145.62,2.0863]
[1746647451162,2.0728,145.73,145.69,6.8631]
[1746647451459,2.0728,145.73,145.62,2.0863]
[1746647451460,2.0728,145.73,145.66,32.48]
[1746647451648,2.0728,145.73,145.66,6.8647]
[1746647451853,2.0728,145.73,145.63,32.48]
[1746647452060,6.8628,145.71,145.68,6.864]
[1746647452360,2.0728,145.73,145.63,32.48]
[1746647452859,6.8627,145.71,145.68,6.8637]
[1746647453053,2.0728,145.73,145.63,32.48]
[1746647453359,6.8634,145.7,145.66,6.8645]
[1746647453661,6.8634,145.7,145.63,32.48]
[1746647454261,6.8639,145.69,145.65,6.865]
[1746647455366,6.8641,145.68,145.65,6.865]
[1746647455564,32.48,145.7,145.64,6.8656]
[1746647455761,32.48,145.7,145.63,32.48]
[1746647456464,6.8647,145.67,145.63,32.48]
[1746647456656,32.48,145.7,145.63,32.48]
[1746647456856,32.48,145.7,145.65,6.8653]
[1746647457057,6.8644,145.67,145.63,32.48]
[1746647457259,34.5528,145.73,145.63,32.48]
[1746647457458,34.5528,145.73,145.68,6.8637]
[1746647457762,6.8623,145.72,145.68,6.8637]
[1746647457964,6.8623,145.72,145.63,32.48]
[1746647458366,34.5528,145.73,145.63,47.1872929]
[1746647458661,34.5528,145.73,145.69,6.8631]
[1746647458864,34.5528,145.73,145.63,47.1872929]
[1746647459362,34.5528,145.73,145.63,32.48]
[1746647459961,6.8624,145.72,145.69,6.8633]
[1746647460159,34.5528,145.73,145.63,32.48]
[1746647460460,6.8628,145.71,145.67,6.8641]
[1746647460662,6.8628,145.71,145.63,32.48]
[1746647461065,6.8631,145.7,145.63,32.48]
[1746647461368,34.5528,145.73,145.63,32.48]
[1746647461665,6.864,145.69,145.66,6.8646]
[1746647461865,39.344,145.69,145.66,6.8646]
[1746647462665,6.864,145.68,145.66,6.8646]
[1746647462968,32.48,145.69,145.6,32.48]
[1746647463160,6.866,145.64,145.56,32.48]
[1746647463360,32.48,145.65,145.6,6.8675]
[1746647463562,32.48,145.65,145.56,32.48]
[1746647463763,32.48,145.65,145.58,6.8684]
[1746647463963,32.48,145.65,145.53,32.48]
[1746647465169,6.8679,145.6,145.53,32.48]
[1746647465367,32.48,145.61,145.56,6.8694]
[1746647465871,32.48,145.61,145.53,32.48]
[1746647466065,32.48,145.61,145.56,6.8695]
[1746647466370,32.48,145.61,145.53,32.48]
[1746647467074,32.48,145.61,145.56,6.8693]
[1746647467369,39.3475,145.61,145.56,6.8693]
[1746647467773,39.3475,145.61,145.57,6.8691]
[1746647468175,6.8678,145.6,145.57,6.8691]
[1746647468468,6.8678,145.6,145.53,32.48]
[1746647468664,32.48,145.61,145.53,32.48]
[1746647468868,32.48,145.61,145.59,6.8678]
[1746647469877,6.8665,145.63,145.54,14.7072929]
[1746647470177,32.48,145.64,145.54,14.7072929]
[1746647470380,39.3461,145.64,145.59,6.868]
[1746647470675,39.3461,145.64,145.57,32.48]
[1746647471078,39.3461,145.64,145.59,6.8679]
[1746647471280,32.48,145.64,145.57,32.48]
[1746647471780,6.8668,145.62,145.57,39.3488]
[1746647472079,32.48,145.64,145.57,32.48]
[1746647472378,6.8666,145.63,145.59,6.8679]
[1746647472575,6.8666,145.63,145.57,32.48]
[1746647472775,32.48,145.64,145.57,32.48]
[1746647472974,32.48,145.64,145.61,6.867]
[1746647473172,2.0306,145.67,145.58,2.0112]
[1746647473377,39.3443,145.68,145.58,4.2078]
[1746647473681,2.103,145.71,145.6,14.7072929]
[1746647473875,34.583,145.71,145.61,32.48]
[1746647474279,32.48,145.71,145.61,32.48]
[1746647475278,4.2699,145.73,145.63,14.7072929]
[1746647475279,2.1423,145.73,145.63,14.7072929]
[1746647475478,2.1423,145.73,145.64,4.1028]
[1746647475681,32.48,145.74,145.72,6.8621]
[1746647475981,4.2222,145.77,145.66,14.7072929]
[1746647476181,34.5746,145.77,145.66,14.7072929]
[1746647476782,6.8611,145.75,145.71,6.8623]
[1746647477280,34.5746,145.77,145.71,6.8623]
[1746647477485,34.5746,145.77,145.65,34.5499]
[1746647477881,6.8623,145.72,145.68,6.8636]
[1746647478086,34.5746,145.77,145.65,34.5499]
[1746647478875,34.5746,145.77,145.66,14.7072929]
[1746647479186,6.8611,145.75,145.7,6.8628]
[1746647479382,34.5746,145.77,145.66,14.7072929]
[1746647479686,34.5746,145.77,145.71,6.8625]
[1746647480386,34.5746,145.77,145.7,6.8628]
[1746647480587,34.5746,145.77,145.66,14.7072929]
[1746647480887,34.5746,145.77,145.68,6.8638]
[1746647481388,34.5746,145.77,145.65,34.5499]
[1746647481886,34.5746,145.77,145.66,14.7072929]
[1746647482689,6.8605,145.76,145.72,6.862]
[1746647483182,34.5746,145.77,145.66,14.7072929]
[1746647483183,34.5746,145.77,145.69,32.48]
[1746647483381,6.8603,145.76,145.7,1.9842]
[1746647483989,41.4346,145.77,145.7,1.9842]
[1746647484188,32.48,145.78,145.7,1.9842]
[1746647484590,6.8607,145.76,145.72,6.8618]
[1746647484790,6.8607,145.76,145.7,1.9842]
[1746647484993,32.48,145.78,145.69,32.48]
[1746647485291,2.0083,145.77,145.69,32.48]
[1746647485588,6.8612,145.74,145.7,6.8627]
[1746647486292,6.8616,145.73,145.7,6.8627]
[1746647486891,6.8614,145.74,145.7,6.8627]
[1746647487192,2.0083,145.77,145.69,32.48]
[1746647487692,2.0083,145.77,145.72,6.8619]
[1746647488097,6.8606,145.76,145.72,6.8619]
[1746647488393,2.0083,145.77,145.69,32.48]
[1746647488694,2.0083,145.77,145.72,6.8618]
[1746647489190,2.0083,145.77,145.69,32.48]
[1746647489388,32.48,145.78,145.69,32.48]
[1746647489591,32.48,145.78,145.69,47.1872929]
[1746647489890,32.48,145.78,145.7,2.0788]
[1746647490086,11.0459,145.8,145.7,2.0788]
[1746647490396,11.0459,145.8,145.76,6.8598]
[1746647490894,6.8589,145.79,145.76,6.8598]
[1746647491396,6.8595,145.78,145.7,2.0788]
[1746647491596,4.1874,145.8,145.7,2.0788]
[1746647492590,2.1809,145.8,145.7,2.0788]
[1746647492791,2.1809,145.8,145.71,2.1613]
[1746647492990,2.1809,145.8,145.77,6.8594]
[1746647493893,2.1809,145.8,145.75,6.8604]
[1746647494094,6.859,145.79,145.74,32.44]
[1746647494294,2.1809,145.8,145.74,32.44]
[1746647494497,2.1809,145.8,145.76,6.8599]
[1746647494693,6.8588,145.79,145.76,6.8599]
[1746647495099,2.1809,145.8,145.75,6.8607]
[1746647495295,2.1809,145.8,145.72,2.0256]
[1746647495499,2.1809,145.8,145.71,32.44]
[1746647495698,4.3681,145.8,145.73,6.8613]
[1746647495892,6.8602,145.76,145.73,6.8613]
[1746647496198,4.3681,145.8,145.73,6.8613]
[1746647496400,4.3681,145.8,145.74,6.861]
[1746647496598,4.3681,145.8,145.71,32.44]
[1746647497501,6.8595,145.78,145.71,32.44]
[1746647497702,4.3681,145.8,145.71,32.44]
[1746647498001,4.3681,145.8,145.74,6.8608]
[1746647498002,6.8593,145.78,145.74,6.8608]
[1746647498504,6.859,145.79,145.75,6.8606]
[1746647498699,4.3681,145.8,145.71,32.44]
[1746647499307,2.1809,145.8,145.71,32.44]
[1746647499895,6.8588,145.79,145.76,6.86]
[1746647500102,2.1809,145.8,145.76,6.86]
[1746647500905,6.8589,145.79,145.76,6.86]
[1746647501200,2.1809,145.8,145.77,6.8597]
[1746647501402,2.1809,145.8,145.71,32.44]
[1746647501806,2.1809,145.8,145.78,6.8592]
[1746647502302,2.1809,145.8,145.71,47.1472929]
[1746647502607,2.1809,145.8,145.77,6.8595]
[1746647503107,2.1809,145.8,145.76,6.86]
[1746647503615,9.0396,145.8,145.76,6.86]
[1746647503817,2.1809,145.8,145.76,6.86]
[1746647504115,6.859,145.79,145.76,6.86]
[1746647504305,2.1809,145.8,145.71,32.44]
[1746647504910,2.1809,145.8,145.77,6.8597]
[1746647505121,2.1809,145.8,145.71,32.44]
[1746647505713,6.8601,145.77,145.71,32.44]
[1746647505918,2.1809,145.8,145.73,6.8613]
[1746647506217,2.1809,145.8,145.71,32.44]
[1746647506418,2.1809,145.8,145.69,2.1257]
[1746647507017,6.8609,145.75,145.72,6.8619]
[1746647507219,32.44,145.77,145.72,6.8619]
[1746647507518,6.8609,145.75,145.72,6.8619]
[1746647508018,6.8604,145.76,145.69,2.1257]
[1746647508218,32.44,145.77,145.69,2.1257]
[1746647508619,6.8604,145.76,145.73,6.8616]
[1746647509115,6.8604,145.76,145.74,6.8611]
[1746647509417,32.44,145.77,145.69,2.1257]
[1746647509721,6.8604,145.76,145.73,6.8614]
[1746647510020,6.8604,145.76,145.69,2.1257]
[1746647510419,6.8604,145.76,145.73,6.8612]
[1746647510618,32.44,145.77,145.69,2.1257]
[1746647510818,34.6209,145.8,145.69,2.1257]
[1746647511018,6.859,145.79,145.76,6.86]
[1746647511421,34.6209,145.8,145.7,2.1554]
[1746647511621,6.8595,145.78,145.75,6.8605]
[1746647512811,6.8595,145.78,145.74,6.861]
[1746647513325,6.8599,145.77,145.73,6.8614]
[1746647513614,32.44,145.79,145.73,6.8614]
[1746647513819,6.8603,145.76,145.73,6.8614]
[1746647514727,32.44,145.79,145.69,2.1257]
[1746647515213,2.1809,145.8,145.7,16.8812929]
[1746647515415,34.488,145.82,145.7,16.8812929]
[1746647515823,6.8581,145.81,145.77,6.8593]
[1746647516120,34.488,145.82,145.74,32.44]
[1746647516321,6.8565,145.84,145.76,14.7072929]
[1746647516617,0.28297,145.85,145.76,14.7072929]
[1746647517025,7.13917,145.85,145.76,16.8812929]
[1746647518126,6.8565,145.84,145.76,16.8812929]
[1746647518425,0.28297,145.85,145.81,6.8575]
[1746647518621,7.13927,145.85,145.81,6.8575]
[1746647518821,7.13927,145.85,145.77,32.44]
[1746647519428,7.13927,145.85,145.82,6.8571]
[1746647519925,0.28297,145.85,145.77,32.44]
[1746647520926,9.043,145.87,145.83,6.8566]
[1746647521321,2.1879,145.87,145.78,32.38]
[1746647521522,2.1879,145.87,145.81,6.8576]
[1746647521716,2.1879,145.87,145.78,32.38]
[1746647521916,6.8574,145.82,145.79,6.8585]
[1746647522122,32.38,145.84,145.75,2.1358]
[1746647522323,2.0065,145.83,145.75,34.5158]
[1746647522621,4.0514,145.83,145.75,34.5158]
[1746647523018,4.0514,145.83,145.79,6.8584]
[1746647523217,2.0065,145.83,145.75,34.5158]
[1746647523423,32.38,145.84,145.75,34.5158]
[1746647523720,6.8559,145.86,145.82,6.857]
[1746647524119,41.4232,145.87,145.79,32.38]
[1746647524327,34.5679,145.87,145.79,32.38]
[1746647525028,6.856,145.85,145.81,6.8576]
[1746647525228,34.5679,145.87,145.79,32.38]
[1746647525728,6.8568,145.84,145.8,6.8581]
[1746647526028,34.5679,145.87,145.79,32.38]
[1746647526624,32.38,145.9,145.8,14.7072929]
[1746647526825,6.8547,145.88,145.8,14.7072929]
[1746647527031,6.8547,145.88,145.81,2.1332]
[1746647527434,6.8553,145.87,145.83,6.8567]
[1746647528128,32.38,145.9,145.83,6.8567]
[1746647528129,6.854,145.9,145.83,32.38]
[1746647528429,2.23775,145.93,145.83,32.38]
[1746647528625,6.8546,145.88,145.83,32.38]
[1746647528827,2.23775,145.93,145.83,32.38]
[1746647530630,6.8535,145.91,145.87,6.8547]
[1746647531035,6.8537,145.9,145.87,6.8547]
[1746647531238,6.8537,145.9,145.88,6.8545]
[1746647531836,2.23775,145.93,145.83,32.38]
[1746647532137,0.25165,145.93,145.84,14.7072929]
[1746647532437,7.10405,145.93,145.9,6.8535]
[1746647532638,0.25165,145.93,145.87,32.38]
[1746647533537,0.25165,145.93,145.89,6.8541]
[1746647533538,7.10425,145.93,145.89,6.8541]
[1746647533739,0.25165,145.93,145.89,6.8541]
[1746647534135,7.10395,145.93,145.89,6.8541]
[1746647534335,0.25165,145.93,145.88,6.8543]
[1746647534738,6.853,145.92,145.88,6.8543]
[1746647534938,6.853,145.92,145.87,32.38]
[1746647534939,6.853,145.92,145.89,6.854]
[1746647535334,7.10405,145.93,145.89,6.854]
[1746647535535,0.25165,145.93,145.89,6.854]
[1746647535930,6.8529,145.92,145.89,6.854]
[1746647536440,0.25165,145.93,145.84,32.38]
[1746647536643,0.25165,145.93,145.82,4.1382]
[1746647536644,0.25165,145.93,145.82,1.9867]
[1746647536832,6.8562,145.85,145.82,6.8571]
[1746647537032,14.7072929,145.92,145.81,2.1332]
[1746647537033,32.38,145.89,145.81,2.1332]
[1746647537437,6.8561,145.85,145.82,6.8571]
[1746647537743,32.38,145.89,145.82,6.8571]
[1746647538043,6.8557,145.86,145.82,6.8571]
[1746647538544,6.8557,145.86,145.83,6.8569]
[1746647539246,6.8557,145.86,145.82,6.8571]
[1746647539441,6.8557,145.86,145.81,2.1332]
[1746647539939,6.8557,145.86,145.83,6.8567]
[1746647540140,6.8552,145.87,145.81,2.1332]
[1746647540638,6.8548,145.88,145.81,2.1332]
[1746647541142,39.2342,145.89,145.86,6.8552]
[1746647541446,32.38,145.89,145.81,2.1332]
[1746647541633,39.2343,145.89,145.83,6.8567]
[1746647541839,39.2343,145.89,145.81,2.1332]
[1746647542246,6.8547,145.88,145.85,6.8557]
[1746647542542,32.38,145.89,145.81,2.1332]
[1746647543046,6.855,145.87,145.83,6.8567]
[1746647543842,6.855,145.87,145.81,2.1332]
[1746647543843,32.38,145.93,145.84,32.38]
[1746647544042,32.38,145.93,145.84,47.0872929]
[1746647544343,32.38,145.93,145.85,2.037]
[1746647544851,39.2326,145.93,145.85,2.037]
[1746647545147,32.38,145.93,145.85,2.037]
[1746647545745,32.38,145.93,145.84,32.38]
[1746647545943,6.8535,145.91,145.87,6.8548]
[1746647546145,6.8535,145.91,145.84,32.38]
[1746647546146,32.38,145.93,145.84,32.38]
[1746647546348,6.8539,145.9,145.86,6.8553]
[1746647546549,32.38,145.93,145.84,32.38]
[1746647547341,32.38,145.93,145.81,34.4932]
[1746647547749,6.8553,145.87,145.84,6.8561]
[1746647548448,6.8553,145.87,145.85,6.856]
[1746647548643,6.8548,145.88,145.85,6.856]
[1746647549041,32.36,145.89,145.87,6.855]
[1746647549244,6.8541,145.89,145.87,6.855]
[1746647549451,32.36,145.92,145.87,6.855]
[1746647549750,6.8538,145.9,145.87,6.855]
[1746647551751,6.8534,145.91,145.81,34.4932]
[1746647551946,32.36,145.92,145.81,34.4932]
[1746647552255,32.36,145.92,145.83,14.7072929]
[1746647552552,2.1134,145.94,145.83,14.7072929]
[1746647552753,2.1134,145.94,145.88,6.8541]
[1746647553357,6.8534,145.91,145.88,6.8541]
[1746647553558,2.1134,145.94,145.86,6.8553]
[1746647553757,6.8548,145.88,145.83,32.32]
[1746647554154,6.8548,145.88,145.84,6.8561]
[1746647554459,32.32,145.91,145.83,32.32]
[1746647554651,32.32,145.91,145.83,39.1766]
[1746647554855,6.8555,145.87,145.83,39.1766]
[1746647555357,32.32,145.91,145.83,39.1766]
[1746647556263,6.8559,145.86,145.83,39.1766]
[1746647556559,32.32,145.91,145.83,39.1766]
[1746647556860,6.8558,145.86,145.84,6.8564]
[1746647557059,6.8558,145.86,145.83,32.32]
[1746647557360,32.32,145.91,145.83,32.32]
[1746647558862,6.8548,145.88,145.85,6.8557]
[1746647559662,6.8551,145.87,145.85,6.8557]
[1746647560460,6.8548,145.88,145.85,6.8557]
[1746647562461,6.855,145.87,145.84,6.8562]
[1746647563359,32.32,145.91,145.83,32.32]
[1746647564662,34.4134,145.94,145.83,32.32]
[1746647564967,6.8537,145.9,145.87,6.8548]
[1746647565165,34.4134,145.94,145.83,32.32]
[1746647566565,6.8534,145.91,145.88,6.8543]
[1746647568363,6.8534,145.91,145.89,6.854]
[1746647568665,34.4134,145.94,145.83,32.32]
[1746647568962,34.4134,145.94,145.88,6.8542]
[1746647569163,6.8531,145.92,145.83,32.32]
[1746647569467,34.4134,145.94,145.88,6.8542]
[1746647569664,6.8532,145.91,145.83,32.32]
[1746647569864,34.4134,145.94,145.83,32.32]
[1746647570165,6.8539,145.9,145.87,6.8547]
[1746647571361,34.4134,145.94,145.88,6.8545]
[1746647571362,6.8534,145.91,145.88,6.8545]
[1746647571965,6.8536,145.9,145.84,2.0728]
[1746647572165,34.4134,145.94,145.84,2.0728]
[1746647572466,6.8534,145.91,145.88,6.8543]
[1746647572865,34.4134,145.94,145.88,6.8543]
[1746647573067,34.4134,145.94,145.84,2.0728]
[1746647574568,6.8538,145.9,145.87,6.8548]
[1746647574865,34.4134,145.94,145.84,2.0728]
[1746647575064,6.8529,145.92,145.89,6.8537]
[1746647575265,32.3,145.94,145.87,32.3]
[1746647575458,4.2813,145.95,145.87,32.3]
[1746647575656,6.852,145.94,145.91,6.8529]
[1746647576162,6.8514,145.95,145.87,32.3]
[1746647576367,6.8514,145.95,145.88,2.1519]
[1746647576565,32.3,145.97,145.88,2.1519]
[1746647577272,36.6742,146.0,145.88,4.2961]
[1746647577461,6.8501,145.98,145.95,6.851]
[1746647578066,6.8497,145.99,145.96,6.8507]
[1746647578269,36.6742,146.0,145.96,6.8507]
[1746647579459,6.8496,145.99,145.96,6.8507]
[1746647579659,36.6742,146.0,145.95,6.851]
[1746647580268,6.8496,145.99,145.95,6.851]
[1746647580569,36.6742,146.0,145.96,6.8507]
[1746647580758,6.8501,145.98,145.92,32.3]
[1746647581162,6.8501,145.98,145.95,6.851]
[1746647582471,6.8504,145.97,145.95,6.851]
[1746647582868,36.6742,146.0,145.92,32.3]
[1746647583168,6.8515,145.95,145.92,32.3]
[1746647583671,36.6742,146.0,145.92,32.3]
[1746647583864,36.6742,146.0,145.89,32.24]
[1746647584066,51.3814929,146.0,145.89,32.24]
[1746647584667,36.6742,146.0,145.89,32.24]
[1746647585265,6.852,145.94,145.89,32.24]
[1746647585669,32.24,145.96,145.89,32.24]
[1746647585870,6.8534,145.91,145.88,6.8542]
[1746647586569,6.8536,145.9,145.87,6.8549]
[1746647586763,6.8536,145.9,145.86,624.52]
[1746647586764,4.1527,145.94,145.86,32.24]
[1746647587671,6.8539,145.9,145.87,6.855]
[1746647587967,4.1527,145.94,145.84,32.24]
[1746647588168,6.8533,145.91,145.88,6.8543]
[1746647588468,4.1527,145.94,145.84,32.24]
[1746647588670,6.8545,145.89,145.86,6.8553]
[1746647588864,4.1527,145.94,145.84,32.24]
[1746647589367,6.8529,145.92,145.84,32.24]
[1746647589969,6.8532,145.91,145.84,32.24]
[1746647590372,6.8532,145.91,145.87,6.8546]
[1746647590564,6.8539,145.9,145.87,6.8546]
[1746647590765,6.8539,145.9,145.84,32.24]
[1746647590965,4.1527,145.94,145.86,6.8553]
[1746647591160,6.8541,145.9,145.84,32.24]
[1746647591770,6.8541,145.89,145.84,32.24]
[1746647592176,6.8539,145.9,145.84,32.24]
[1746647592867,6.8541,145.89,145.84,32.24]
[1746647593068,4.1527,145.94,145.85,6.8558]
[1746647593664,4.1527,145.94,145.86,6.8555]
[1746647594274,6.8543,145.89,145.86,6.8555]
[1746647594475,32.24,145.92,145.87,6.855]
[1746647594875,6.8544,145.89,145.84,32.24]
[1746647595578,6.8544,145.89,145.86,6.8552]
[1746647596075,32.24,145.92,145.84,32.24]
[1746647596076,6.8549,145.88,145.85,6.8559]
[1746647596278,32.24,145.92,145.84,32.24]
[1746647596466,9.17906718,145.91,145.81,32.24]
[1746647596671,6.8554,145.87,145.84,6.8562]
[1746647597071,6.8554,145.87,145.81,32.24]
[1746647597676,6.8548,145.88,145.81,32.24]
[1746647598677,6.8551,145.87,145.84,6.8561]
[1746647598875,6.8551,145.87,145.81,32.24]
[1746647599275,6.8551,145.87,145.83,6.8565]
[1746647599470,32.24,145.92,145.81,32.24]
[1746647600075,6.8557,145.86,145.81,32.24]
[1746647600374,6.8557,145.86,145.83,6.8566]
[1746647600675,6.8561,145.85,145.81,32.24]
[1746647600976,32.24,145.88,145.77,32.24]
[1746647601176,6.8579,145.81,145.77,32.24]
[1746647601372,6.8579,145.81,145.78,6.859]
[1746647601674,6.8591,145.79,145.73,2.1652]
[1746647601863,41.41906718,145.83,145.73,32.24]
[1746647603578,41.41906718,145.83,145.76,6.8599]